[Event "Titled Tuesday Blitz June 6 Early 2023"]
[White "Reprintsev, Alexander"]
[Black "De La Colina, Nicolas"]
[WhiteFideId "14100541"]
[BlackFideId "30946921"]
[WhiteElo "2229"]
[BlackElo "2046"]
[Result "1/2-1/2"]
[Round "6"]
[TimeControl "180+2"]
[Date "2023.06.06"]
[WhiteClock "0:00:15"]
[BlackClock "0:00:05"]
[Board "59"]

1. e4 {[%clk 0:03:00]}  c5 {[%clk 0:02:59]} 2. b3 {[%clk 0:03:00]}  g6 {[%clk 0:02:58]} 3. Bb2 {[%clk 0:03:00]}  Nf6 {[%clk 0:02:59]} 4. e5 {[%clk 0:03:00]}  Nd5 {[%clk 0:02:59]} 5. Nc3 {[%clk 0:03:00]}  Nc7 {[%clk 0:02:29]} 6. d4 {[%clk 0:02:59]}  Bg7 {[%clk 0:02:22]} 7. Nf3 {[%clk 0:02:56]}  Nc6 {[%clk 0:02:19]} 8. dxc5 {[%clk 0:02:41]}  Nxe5 {[%clk 0:02:16]} 9. Nxe5 {[%clk 0:02:40]}  Bxe5 {[%clk 0:02:17]} 10. Qe2 {[%clk 0:02:37]}  Bg7 {[%clk 0:02:14]} 11. O-O-O {[%clk 0:02:37]}  Ne6 {[%clk 0:02:12]} 12. Ne4 {[%clk 0:02:35]}  Bxb2+ {[%clk 0:02:04]} 13. Kxb2 {[%clk 0:02:35]}  Qa5 {[%clk 0:01:57]} 14. h4 {[%clk 0:01:33]}  h5 {[%clk 0:01:51]} 15. Qb5 {[%clk 0:01:24]}  Qc7 {[%clk 0:01:46]} 16. Rd5 {[%clk 0:01:09]}  b6 {[%clk 0:01:40]} 17. cxb6 {[%clk 0:01:05]}  axb6 {[%clk 0:01:40]} 18. Qc4 {[%clk 0:00:54]}  Qxc4 {[%clk 0:01:32]} 19. Bxc4 {[%clk 0:00:54]}  Bb7 {[%clk 0:01:32]} 20. Re5 {[%clk 0:00:51]}  d6 {[%clk 0:01:16]} 21. Rxe6 {[%clk 0:00:50]}  fxe6 {[%clk 0:01:13]} 22. Ng5 {[%clk 0:00:50]}  Bd5 {[%clk 0:01:06]} 23. Bd3 {[%clk 0:00:50]}  Rg8 {[%clk 0:01:06]} 24. f3 {[%clk 0:00:49]}  e5 {[%clk 0:01:01]} 25. Re1 {[%clk 0:00:41]}  Kd7 {[%clk 0:00:56]} 26. Bb5+ {[%clk 0:00:37]}  Bc6 {[%clk 0:00:55]} 27. Bc4 {[%clk 0:00:37]}  Rgf8 {[%clk 0:00:51]} 28. Bd3 {[%clk 0:00:34]}  Rf6 {[%clk 0:00:49]} 29. a4 {[%clk 0:00:30]}  Rg8 {[%clk 0:00:47]} 30. Re3 {[%clk 0:00:27]}  Rf4 {[%clk 0:00:46]} 31. g3 {[%clk 0:00:27]}  Rf6 {[%clk 0:00:46]} 32. c4 {[%clk 0:00:26]}  Rgf8 {[%clk 0:00:46]} 33. Be2 {[%clk 0:00:25]}  e6 {[%clk 0:00:37]} 34. Kc3 {[%clk 0:00:25]}  Rf5 {[%clk 0:00:36]} 35. Kd2 {[%clk 0:00:25]}  d5 {[%clk 0:00:34]} 36. Ke1 {[%clk 0:00:21]}  Kd6 {[%clk 0:00:25]} 37. Kf2 {[%clk 0:00:20]}  d4 {[%clk 0:00:24]} 38. Rd3 {[%clk 0:00:19]}  Kc5 {[%clk 0:00:24]} 39. Kg2 {[%clk 0:00:19]}  e4 {[%clk 0:00:22]} 40. fxe4 {[%clk 0:00:19]}  Rf2+ {[%clk 0:00:23]} 41. Kh3 {[%clk 0:00:19]}  Rxe2 {[%clk 0:00:24]} 42. Nxe6+ {[%clk 0:00:18]}  Kd6 {[%clk 0:00:13]} 43. Nxf8 {[%clk 0:00:19]}  Be8 {[%clk 0:00:14]} 44. Rxd4+ {[%clk 0:00:19]}  Ke7 {[%clk 0:00:14]} 45. Nh7 {[%clk 0:00:19]}  Bd7+ {[%clk 0:00:14]} 46. g4 {[%clk 0:00:18]}  Bxg4+ {[%clk 0:00:13]} 47. Kg3 {[%clk 0:00:19]}  Re3+ {[%clk 0:00:14]} 48. Kf4 {[%clk 0:00:19]}  Rxb3 {[%clk 0:00:15]} 49. Ng5 {[%clk 0:00:17]}  Rb4 {[%clk 0:00:15]} 50. Ke5 {[%clk 0:00:17]}  Rxa4 {[%clk 0:00:15]} 51. Kd5 {[%clk 0:00:17]}  Ra5+ {[%clk 0:00:15]} 52. Kc6 {[%clk 0:00:18]}  Ra1 {[%clk 0:00:14]} 53. Kxb6 {[%clk 0:00:18]}  Rh1 {[%clk 0:00:15]} 54. Kc7 {[%clk 0:00:18]}  Rxh4 {[%clk 0:00:15]} 55. c5 {[%clk 0:00:19]}  Rh1 {[%clk 0:00:15]} 56. c6 {[%clk 0:00:18]}  Rc1 {[%clk 0:00:16]} 57. Rd6 {[%clk 0:00:19]}  Rc5 {[%clk 0:00:10]} 58. Rxg6 {[%clk 0:00:18]}  Bd1 {[%clk 0:00:10]} 59. Re6+ {[%clk 0:00:17]}  Kf8 {[%clk 0:00:10]} 60. Nh3 {[%clk 0:00:16]}  Bg4 {[%clk 0:00:10]} 61. Rf6+ {[%clk 0:00:15]}  Kg7 {[%clk 0:00:10]} 62. Rd6 {[%clk 0:00:14]}  Bxh3 {[%clk 0:00:10]} 63. Kd8 {[%clk 0:00:14]}  h4 {[%clk 0:00:10]} 64. c7 {[%clk 0:00:14]}  Bg4 {[%clk 0:00:08]} 65. Rd5 {[%clk 0:00:13]}  Rxd5+ {[%clk 0:00:06]} 66. exd5 {[%clk 0:00:13]}  h3 {[%clk 0:00:07]} 67. d6 {[%clk 0:00:13]}  h2 {[%clk 0:00:07]} 68. d7 {[%clk 0:00:14]}  Bxd7 {[%clk 0:00:04]} 69. Kxd7 {[%clk 0:00:13]}  h1=Q {[%clk 0:00:04]} 70. c8=Q {[%clk 0:00:14]}  Qd5+ {[%clk 0:00:05]} 71. Kc7 {[%clk 0:00:15]}  Kf7 {[%clk 0:00:05]} 72. Qd7+ {[%clk 0:00:15]}  Qxd7+ {[%clk 0:00:05]} 73. Kxd7 {[%clk 0:00:15]} 1/2-1/2


[Site "https://www.chess.com"]

[Event "Titled Tuesday Blitz June 6 Early 2023"]
[White "Janaszak, Dawid"]
[Black "Samunenkov, Ihor"]
[WhiteFideId "1119206"]
[BlackFideId "14187086"]
[WhiteElo "2220"]
[BlackElo "2457"]
[Result "0-1"]
[Round "6"]
[TimeControl "180+2"]
[Date "2023.06.06"]
[WhiteClock "0:00:05"]
[BlackClock "0:00:12"]
[Board "60"]

1. Nf3 {[%clk 0:03:00]}  d5 {[%clk 0:02:59]} 2. g3 {[%clk 0:03:00]}  c5 {[%clk 0:02:59]} 3. Bg2 {[%clk 0:03:01]}  Nc6 {[%clk 0:02:59]} 4. O-O {[%clk 0:03:01]}  e5 {[%clk 0:03:00]} 5. d3 {[%clk 0:03:00]}  Be7 {[%clk 0:03:00]} 6. e4 {[%clk 0:03:00]}  d4 {[%clk 0:03:00]} 7. a4 {[%clk 0:02:59]}  Be6 {[%clk 0:02:57]} 8. Nbd2 {[%clk 0:02:58]}  g5 {[%clk 0:02:40]} 9. Nc4 {[%clk 0:02:57]}  f6 {[%clk 0:02:40]} 10. h4 {[%clk 0:02:46]}  g4 {[%clk 0:02:33]} 11. Nh2 {[%clk 0:02:44]}  h5 {[%clk 0:02:33]} 12. f4 {[%clk 0:02:40]}  Qd7 {[%clk 0:02:14]} 13. fxe5 {[%clk 0:02:34]}  fxe5 {[%clk 0:02:14]} 14. a5 {[%clk 0:02:25]}  O-O-O {[%clk 0:02:10]} 15. Rf5 {[%clk 0:02:02]}  Bxf5 {[%clk 0:01:55]} 16. exf5 {[%clk 0:02:01]}  Nf6 {[%clk 0:01:56]} 17. Bg5 {[%clk 0:01:32]}  Nd5 {[%clk 0:01:51]} 18. a6 {[%clk 0:01:12]}  b6 {[%clk 0:01:44]} 19. Bxe7 {[%clk 0:01:01]}  Ncxe7 {[%clk 0:01:38]} 20. f6 {[%clk 0:00:55]}  Nc6 {[%clk 0:01:24]} 21. Qe2 {[%clk 0:00:41]}  Rhf8 {[%clk 0:01:00]} 22. Nxe5 {[%clk 0:00:34]}  Qe6 {[%clk 0:00:56]} 23. Re1 {[%clk 0:00:27]}  Qxe5 {[%clk 0:00:32]} 24. Qxe5 {[%clk 0:00:27]}  Nxe5 {[%clk 0:00:33]} 25. Rxe5 {[%clk 0:00:27]}  Nxf6 {[%clk 0:00:32]} 26. Re7 {[%clk 0:00:17]}  Rd7 {[%clk 0:00:32]} 27. Re6 {[%clk 0:00:17]}  Kd8 {[%clk 0:00:25]} 28. Nf1 {[%clk 0:00:15]}  Re7 {[%clk 0:00:25]} 29. Rd6+ {[%clk 0:00:15]}  Kc7 {[%clk 0:00:17]} 30. Rc6+ {[%clk 0:00:15]}  Kd7 {[%clk 0:00:17]} 31. Nd2 {[%clk 0:00:14]}  Re2 {[%clk 0:00:17]} 32. Rxf6 {[%clk 0:00:08]}  Rxf6 {[%clk 0:00:16]} 33. Ne4 {[%clk 0:00:07]}  Rf8 {[%clk 0:00:15]} 34. c3 {[%clk 0:00:06]}  Rxb2 {[%clk 0:00:14]} 35. cxd4 {[%clk 0:00:06]}  cxd4 {[%clk 0:00:14]} 36. Ng5 {[%clk 0:00:07]}  Rff2 {[%clk 0:00:13]} 37. Be4 {[%clk 0:00:07]}  Rfd2 {[%clk 0:00:13]} 38. Bf5+ {[%clk 0:00:05]}  Kc7 {[%clk 0:00:11]} 39. Ne6+ {[%clk 0:00:05]}  Kd6 {[%clk 0:00:12]} 0-1


[Site "https://www.chess.com"]

[Event "Titled Tuesday Blitz June 6 Early 2023"]
[White "Arencibia Monduy, Antonio"]
[Black "Fus, Jakub"]
[WhiteFideId "3507939"]
[BlackFideId "1193023"]
[WhiteElo "2495"]
[BlackElo "2335"]
[Result "0-1"]
[Round "6"]
[TimeControl "180+2"]
[Date "2023.06.06"]
[WhiteClock "0:00:03"]
[BlackClock "0:00:06"]
[Board "61"]

1. e4 {[%clk 0:03:00]}  c6 {[%clk 0:02:58]} 2. d3 {[%clk 0:02:55]}  d5 {[%clk 0:02:59]} 3. Nd2 {[%clk 0:02:54]}  e5 {[%clk 0:02:58]} 4. Qe2 {[%clk 0:02:54]}  Bd6 {[%clk 0:02:57]} 5. Ngf3 {[%clk 0:02:53]}  Qe7 {[%clk 0:02:48]} 6. g3 {[%clk 0:02:41]}  Nf6 {[%clk 0:02:46]} 7. Bg2 {[%clk 0:02:41]}  O-O {[%clk 0:02:47]} 8. O-O {[%clk 0:02:41]}  Re8 {[%clk 0:02:45]} 9. Re1 {[%clk 0:02:38]}  Nbd7 {[%clk 0:02:43]} 10. h3 {[%clk 0:02:36]}  Nf8 {[%clk 0:02:43]} 11. Nf1 {[%clk 0:02:27]}  Ng6 {[%clk 0:02:40]} 12. Bd2 {[%clk 0:02:13]}  Be6 {[%clk 0:02:32]} 13. a3 {[%clk 0:02:05]}  Rad8 {[%clk 0:02:32]} 14. Bc3 {[%clk 0:02:00]}  Bc8 {[%clk 0:02:26]} 15. Rad1 {[%clk 0:01:52]}  Qc7 {[%clk 0:02:15]} 16. N3h2 {[%clk 0:01:31]}  Qb6 {[%clk 0:02:11]} 17. Qd2 {[%clk 0:01:23]}  Qc7 {[%clk 0:01:50]} 18. Qe2 {[%clk 0:01:08]}  b6 {[%clk 0:01:32]} 19. Bd2 {[%clk 0:01:04]}  Ba6 {[%clk 0:01:03]} 20. Qf3 {[%clk 0:01:04]}  dxe4 {[%clk 0:00:56]} 21. dxe4 {[%clk 0:01:03]}  Nd7 {[%clk 0:00:56]} 22. Ne3 {[%clk 0:00:56]}  Nc5 {[%clk 0:00:56]} 23. Bc3 {[%clk 0:00:55]}  Ne6 {[%clk 0:00:54]} 24. Nf5 {[%clk 0:00:54]}  Bf8 {[%clk 0:00:54]} 25. Ng4 {[%clk 0:00:45]}  c5 {[%clk 0:00:39]} 26. h4 {[%clk 0:00:32]}  Nd4 {[%clk 0:00:37]} 27. Bxd4 {[%clk 0:00:30]}  exd4 {[%clk 0:00:37]} 28. h5 {[%clk 0:00:20]}  Ne5 {[%clk 0:00:38]} 29. Nxe5 {[%clk 0:00:20]}  Qxe5 {[%clk 0:00:39]} 30. Qg4 {[%clk 0:00:17]}  g6 {[%clk 0:00:35]} 31. hxg6 {[%clk 0:00:16]}  hxg6 {[%clk 0:00:34]} 32. f4 {[%clk 0:00:14]}  Qe6 {[%clk 0:00:30]} 33. Bh3 {[%clk 0:00:09]}  Bb7 {[%clk 0:00:22]} 34. Qg5 {[%clk 0:00:08]}  Qc6 {[%clk 0:00:16]} 35. Bg2 {[%clk 0:00:02]}  c4 {[%clk 0:00:15]} 36. Nh4 {[%clk 0:00:01]}  d3 {[%clk 0:00:14]} 37. cxd3 {[%clk 0:00:02]}  cxd3 {[%clk 0:00:14]} 38. Nf3 {[%clk 0:00:02]}  Rc8 {[%clk 0:00:06]} 39. Ne5 {[%clk 0:00:02]}  Qc5+ {[%clk 0:00:05]} 40. Kh2 {[%clk 0:00:03]}  Bg7 {[%clk 0:00:05]} 41. Qg4 {[%clk 0:00:03]}  Bxe5 {[%clk 0:00:05]} 42. fxe5 {[%clk 0:00:04]}  Qxe5 {[%clk 0:00:06]} 43. Rxd3 {[%clk 0:00:03]}  Kg7 {[%clk 0:00:06]} 44. Rf3 {[%clk 0:00:03]}  Qd4 {[%clk 0:00:05]} 45. Bh3 {[%clk 0:00:02]}  Rh8 {[%clk 0:00:06]} 46. Kg2 {[%clk 0:00:03]}  Rcf8 {[%clk 0:00:06]} 47. Re2 {[%clk 0:00:03]}  Bc8 {[%clk 0:00:06]} 0-1


[Site "https://www.chess.com"]

[Event "Titled Tuesday Blitz June 6 Early 2023"]
[White "Nemec, Jachym"]
[Black "Ashraf, Artin"]
[WhiteFideId "23716525"]
[BlackFideId "22514805"]
[WhiteElo "2347"]
[BlackElo "2224"]
[Result "0-1"]
[Round "6"]
[TimeControl "180+2"]
[Date "2023.06.06"]
[WhiteClock "0:01:18"]
[BlackClock "0:00:32"]
[Board "62"]

1. b3 {[%clk 0:03:00]}  Nf6 {[%clk 0:02:56]} 2. Nf3 {[%clk 0:02:59]}  g6 {[%clk 0:02:56]} 3. Bb2 {[%clk 0:02:58]}  Bg7 {[%clk 0:02:57]} 4. g3 {[%clk 0:02:59]}  d5 {[%clk 0:02:54]} 5. Bg2 {[%clk 0:02:59]}  c5 {[%clk 0:02:54]} 6. O-O {[%clk 0:02:59]}  O-O {[%clk 0:02:54]} 7. e3 {[%clk 0:02:57]}  Nc6 {[%clk 0:02:51]} 8. c4 {[%clk 0:02:55]}  d4 {[%clk 0:02:51]} 9. exd4 {[%clk 0:02:55]}  cxd4 {[%clk 0:02:39]} 10. d3 {[%clk 0:02:54]}  Bf5 {[%clk 0:02:33]} 11. Na3 {[%clk 0:02:50]}  Nd7 {[%clk 0:02:30]} 12. Nc2 {[%clk 0:02:49]}  Nc5 {[%clk 0:02:30]} 13. Nfe1 {[%clk 0:02:46]}  a5 {[%clk 0:02:26]} 14. Ba3 {[%clk 0:02:43]}  Qb6 {[%clk 0:02:25]} 15. Bxc5 {[%clk 0:02:39]}  Qxc5 {[%clk 0:02:24]} 16. a3 {[%clk 0:02:39]}  b5 {[%clk 0:02:14]} 17. Rb1 {[%clk 0:02:36]}  b4 {[%clk 0:02:10]} 18. a4 {[%clk 0:02:37]}  Rad8 {[%clk 0:01:48]} 19. Nf3 {[%clk 0:02:35]}  Nb8 {[%clk 0:01:45]} 20. Qe2 {[%clk 0:02:33]}  Qc7 {[%clk 0:01:45]} 21. Nd2 {[%clk 0:02:33]}  Na6 {[%clk 0:01:42]} 22. g4 {[%clk 0:02:32]}  Bc8 {[%clk 0:01:27]} 23. f4 {[%clk 0:02:14]}  Bh6 {[%clk 0:01:23]} 24. g5 {[%clk 0:02:12]}  Bg7 {[%clk 0:01:22]} 25. Ne4 {[%clk 0:02:11]}  f5 {[%clk 0:01:17]} 26. gxf6 {[%clk 0:01:50]}  exf6 {[%clk 0:01:18]} 27. Ng3 {[%clk 0:01:50]}  f5 {[%clk 0:01:16]} 28. Qd2 {[%clk 0:01:44]}  Nc5 {[%clk 0:01:13]} 29. Ne1 {[%clk 0:01:42]}  Rde8 {[%clk 0:01:07]} 30. Nf3 {[%clk 0:01:40]}  Re3 {[%clk 0:01:07]} 31. Ne1 {[%clk 0:01:36]}  Bh6 {[%clk 0:01:00]} 32. Bd5+ {[%clk 0:01:34]}  Kh8 {[%clk 0:00:57]} 33. Ng2 {[%clk 0:01:32]}  Rxd3 {[%clk 0:00:56]} 34. Qf2 {[%clk 0:01:32]}  Bg7 {[%clk 0:00:48]} 35. h4 {[%clk 0:01:29]}  Rxb3 {[%clk 0:00:44]} 36. Rxb3 {[%clk 0:01:28]}  Nxb3 {[%clk 0:00:45]} 37. h5 {[%clk 0:01:29]}  d3 {[%clk 0:00:45]} 38. Kh2 {[%clk 0:01:28]}  Bd4 {[%clk 0:00:41]} 39. Qa2 {[%clk 0:01:26]}  Nc5 {[%clk 0:00:40]} 40. hxg6 {[%clk 0:01:27]}  hxg6 {[%clk 0:00:40]} 41. Nh4 {[%clk 0:01:27]}  Kg7 {[%clk 0:00:35]} 42. Kg2 {[%clk 0:01:21]}  Rh8 {[%clk 0:00:34]} 43. Rh1 {[%clk 0:01:18]}  Qxf4 {[%clk 0:00:32]} 0-1


[Site "https://www.chess.com"]

[Event "Titled Tuesday Blitz June 6 Early 2023"]
[White "Martinez Ramirez, Lennis"]
[Black "Andreev, Konstantin"]
[WhiteFideId "3509079"]
[BlackFideId "24239305"]
[WhiteElo "2410"]
[BlackElo "2106"]
[Result "0-1"]
[Round "6"]
[TimeControl "180+2"]
[Date "2023.06.06"]
[WhiteClock "0:00:02"]
[BlackClock "0:01:08"]
[Board "63"]

1. c4 {[%clk 0:02:56]}  Nf6 {[%clk 0:02:46]} 2. Nc3 {[%clk 0:02:56]}  e5 {[%clk 0:02:45]} 3. g3 {[%clk 0:02:53]}  d5 {[%clk 0:02:43]} 4. cxd5 {[%clk 0:02:52]}  Nxd5 {[%clk 0:02:44]} 5. Bg2 {[%clk 0:02:52]}  Nb6 {[%clk 0:02:43]} 6. Nf3 {[%clk 0:02:52]}  Nc6 {[%clk 0:02:44]} 7. Rb1 {[%clk 0:02:52]}  Bc5 {[%clk 0:02:43]} 8. b4 {[%clk 0:02:43]}  Bd6 {[%clk 0:02:24]} 9. b5 {[%clk 0:02:40]}  Nd4 {[%clk 0:02:24]} 10. e3 {[%clk 0:01:47]}  Nxf3+ {[%clk 0:02:22]} 11. Qxf3 {[%clk 0:01:48]}  O-O {[%clk 0:02:21]} 12. a4 {[%clk 0:01:47]}  a5 {[%clk 0:02:17]} 13. O-O {[%clk 0:00:39]}  f5 {[%clk 0:02:15]} 14. Qe2 {[%clk 0:00:37]}  Rb8 {[%clk 0:02:11]} 15. d3 {[%clk 0:00:35]}  Be6 {[%clk 0:02:07]} 16. Bb2 {[%clk 0:00:33]}  Qd7 {[%clk 0:02:04]} 17. Ba1 {[%clk 0:00:29]}  Qe7 {[%clk 0:01:41]} 18. Rfd1 {[%clk 0:00:14]}  Qf7 {[%clk 0:01:41]} 19. d4 {[%clk 0:00:12]}  e4 {[%clk 0:01:40]} 20. f3 {[%clk 0:00:12]}  Bc4 {[%clk 0:01:39]} 21. Qf2 {[%clk 0:00:11]}  Bd3 {[%clk 0:01:32]} 22. Rxd3 {[%clk 0:00:09]}  exd3 {[%clk 0:01:32]} 23. Qd2 {[%clk 0:00:09]}  Rbe8 {[%clk 0:01:27]} 24. Qxd3 {[%clk 0:00:06]}  Qc4 {[%clk 0:01:27]} 25. Qd2 {[%clk 0:00:05]}  Bb4 {[%clk 0:01:24]} 26. Bf1 {[%clk 0:00:05]}  Qe6 {[%clk 0:01:22]} 27. Re1 {[%clk 0:00:04]}  Kh8 {[%clk 0:01:18]} 28. Bd3 {[%clk 0:00:02]}  Qh6 {[%clk 0:01:08]} 0-1


[Site "https://www.chess.com"]

[Event "Titled Tuesday Blitz June 6 Early 2023"]
[White "Lorenzo De La Riva, Lazaro"]
[Black "Souleidis, Georgios"]
[WhiteFideId "2268809"]
[BlackFideId "4206827"]
[WhiteElo "2294"]
[BlackElo "2401"]
[Result "0-1"]
[Round "6"]
[TimeControl "180+2"]
[Date "2023.06.06"]
[WhiteClock "0:00:06"]
[BlackClock "0:00:31"]
[Board "66"]

1. e4 {[%clk 0:03:00]}  c5 {[%clk 0:02:58]} 2. Nc3 {[%clk 0:02:59]}  e6 {[%clk 0:02:58]} 3. Nge2 {[%clk 0:02:51]}  Nc6 {[%clk 0:02:58]} 4. g3 {[%clk 0:02:50]}  Nf6 {[%clk 0:02:54]} 5. Bg2 {[%clk 0:02:50]}  d6 {[%clk 0:02:53]} 6. O-O {[%clk 0:02:43]}  Be7 {[%clk 0:02:53]} 7. d3 {[%clk 0:02:43]}  O-O {[%clk 0:02:53]} 8. f4 {[%clk 0:02:41]}  Rb8 {[%clk 0:02:53]} 9. a4 {[%clk 0:02:40]}  a6 {[%clk 0:02:53]} 10. h3 {[%clk 0:02:40]}  Nb4 {[%clk 0:02:44]} 11. g4 {[%clk 0:02:38]}  b5 {[%clk 0:02:32]} 12. axb5 {[%clk 0:02:38]}  axb5 {[%clk 0:02:33]} 13. Ng3 {[%clk 0:02:37]}  Nd7 {[%clk 0:02:25]} 14. g5 {[%clk 0:02:24]}  e5 {[%clk 0:02:15]} 15. h4 {[%clk 0:02:23]}  exf4 {[%clk 0:02:15]} 16. Bxf4 {[%clk 0:02:23]}  Ne5 {[%clk 0:02:15]} 17. Nf5 {[%clk 0:02:22]}  Be6 {[%clk 0:02:10]} 18. Ra7 {[%clk 0:02:10]}  Nbc6 {[%clk 0:02:06]} 19. Ra6 {[%clk 0:02:07]}  Re8 {[%clk 0:01:52]} 20. Qd2 {[%clk 0:02:02]}  Bf8 {[%clk 0:01:51]} 21. Rfa1 {[%clk 0:01:55]}  Rb6 {[%clk 0:01:45]} 22. Ne2 {[%clk 0:01:31]}  Nb4 {[%clk 0:01:39]} 23. Rxb6 {[%clk 0:01:26]}  Qxb6 {[%clk 0:01:39]} 24. Kh1 {[%clk 0:01:15]}  g6 {[%clk 0:01:26]} 25. Ne3 {[%clk 0:01:13]}  Qb7 {[%clk 0:01:19]} 26. Rf1 {[%clk 0:01:00]}  Qd7 {[%clk 0:01:06]} 27. Kh2 {[%clk 0:00:58]}  Rd8 {[%clk 0:00:56]} 28. Nc1 {[%clk 0:00:53]}  Bg7 {[%clk 0:00:54]} 29. c3 {[%clk 0:00:53]}  Nbc6 {[%clk 0:00:52]} 30. Ne2 {[%clk 0:00:53]}  Ne7 {[%clk 0:00:51]} 31. Ng3 {[%clk 0:00:51]}  d5 {[%clk 0:00:48]} 32. Qe1 {[%clk 0:00:27]}  dxe4 {[%clk 0:00:48]} 33. Bxe4 {[%clk 0:00:26]}  Nxd3 {[%clk 0:00:46]} 34. Bxd3 {[%clk 0:00:23]}  Qxd3 {[%clk 0:00:46]} 35. Ng2 {[%clk 0:00:16]}  Nf5 {[%clk 0:00:43]} 36. Ne4 {[%clk 0:00:15]}  Bd5 {[%clk 0:00:35]} 37. Nxc5 {[%clk 0:00:11]}  Qc4 {[%clk 0:00:31]} 38. Nb7 {[%clk 0:00:06]}  Bxb7 {[%clk 0:00:31]} 0-1


[Site "https://www.chess.com"]

[Event "Titled Tuesday Blitz June 6 Early 2023"]
[White "Pham, Le Thao Nguyen"]
[Black "Domingo Nunez, Ruben"]
[WhiteFideId "12401226"]
[BlackFideId "22245570"]
[WhiteElo "2286"]
[BlackElo "2404"]
[Result "1-0"]
[Round "6"]
[TimeControl "180+2"]
[Date "2023.06.06"]
[WhiteClock "0:00:03"]
[BlackClock "0:00:01"]
[Board "67"]

1. d4 {[%clk 0:03:00]}  g6 {[%clk 0:03:00]} 2. Nf3 {[%clk 0:02:58]}  Bg7 {[%clk 0:03:00]} 3. c4 {[%clk 0:02:57]}  d6 {[%clk 0:03:00]} 4. Nc3 {[%clk 0:02:57]}  Nd7 {[%clk 0:03:00]} 5. e4 {[%clk 0:02:52]}  e5 {[%clk 0:02:59]} 6. Be3 {[%clk 0:02:46]}  h5 {[%clk 0:02:59]} 7. h3 {[%clk 0:02:44]}  Bh6 {[%clk 0:02:58]} 8. Qd2 {[%clk 0:02:28]}  Bxe3 {[%clk 0:02:58]} 9. fxe3 {[%clk 0:02:26]}  Ngf6 {[%clk 0:02:56]} 10. Bd3 {[%clk 0:02:26]}  h4 {[%clk 0:02:55]} 11. Qf2 {[%clk 0:02:23]}  Qe7 {[%clk 0:02:02]} 12. O-O {[%clk 0:02:02]}  c6 {[%clk 0:01:47]} 13. Rad1 {[%clk 0:01:53]}  Nf8 {[%clk 0:01:41]} 14. c5 {[%clk 0:01:33]}  dxc5 {[%clk 0:01:31]} 15. Nxe5 {[%clk 0:01:28]}  N6d7 {[%clk 0:01:24]} 16. Nxf7 {[%clk 0:01:18]}  Rh7 {[%clk 0:01:23]} 17. Ne5 {[%clk 0:01:04]}  Nxe5 {[%clk 0:01:23]} 18. dxe5 {[%clk 0:01:05]}  Be6 {[%clk 0:00:59]} 19. Bc2 {[%clk 0:00:36]}  Nd7 {[%clk 0:00:46]} 20. Ne2 {[%clk 0:00:20]}  g5 {[%clk 0:00:39]} 21. Bb3 {[%clk 0:00:17]}  Rf7 {[%clk 0:00:26]} 22. Qxf7+ {[%clk 0:00:16]}  Bxf7 {[%clk 0:00:26]} 23. Rxf7 {[%clk 0:00:16]}  Qxe5 {[%clk 0:00:20]} 24. Rdxd7 {[%clk 0:00:14]}  Rd8 {[%clk 0:00:19]} 25. Rxd8+ {[%clk 0:00:09]}  Kxd8 {[%clk 0:00:20]} 26. Kf2 {[%clk 0:00:06]}  b5 {[%clk 0:00:20]} 27. Rf5 {[%clk 0:00:04]}  Qe7 {[%clk 0:00:19]} 28. e5 {[%clk 0:00:02]}  c4 {[%clk 0:00:19]} 29. Bc2 {[%clk 0:00:02]}  Qb4 {[%clk 0:00:16]} 30. Be4 {[%clk 0:00:02]}  Qxb2 {[%clk 0:00:16]} 31. Bxc6 {[%clk 0:00:03]}  Kc7 {[%clk 0:00:17]} 32. Bd5 {[%clk 0:00:02]}  Qxa2 {[%clk 0:00:15]} 33. e6 {[%clk 0:00:02]}  Kd6 {[%clk 0:00:14]} 34. e4 {[%clk 0:00:02]}  Qa3 {[%clk 0:00:13]} 35. Rf7 {[%clk 0:00:02]}  Qc5+ {[%clk 0:00:11]} 36. Kf3 {[%clk 0:00:03]}  c3 {[%clk 0:00:04]} 37. Rd7+ {[%clk 0:00:03]}  Ke5 {[%clk 0:00:05]} 38. e7 {[%clk 0:00:04]}  Qc8 {[%clk 0:00:02]} 39. Rd8 {[%clk 0:00:04]}  g4+ {[%clk 0:00:02]} 40. hxg4 {[%clk 0:00:03]}  h3 {[%clk 0:00:01]} 41. e8=Q+ {[%clk 0:00:03]} 1-0


[Site "https://www.chess.com"]

[Event "Titled Tuesday Blitz June 6 Early 2023"]
[White "Sadykov, Ramil"]
[Black "Jovic, Stanoje"]
[WhiteFideId "24113590"]
[BlackFideId "905020"]
[WhiteElo "2245"]
[BlackElo "2236"]
[Result "1-0"]
[Round "6"]
[TimeControl "180+2"]
[Date "2023.06.06"]
[WhiteClock "0:01:02"]
[BlackClock "0:00:08"]
[Board "68"]

1. d4 {[%clk 0:02:59]}  Nf6 {[%clk 0:03:00]} 2. Nc3 {[%clk 0:02:59]}  d5 {[%clk 0:02:59]} 3. Bf4 {[%clk 0:02:59]}  e6 {[%clk 0:02:58]} 4. e3 {[%clk 0:02:59]}  Bd6 {[%clk 0:02:58]} 5. Qf3 {[%clk 0:02:57]}  O-O {[%clk 0:02:54]} 6. Bxd6 {[%clk 0:02:50]}  cxd6 {[%clk 0:02:53]} 7. Bd3 {[%clk 0:02:42]}  Nc6 {[%clk 0:02:52]} 8. Nge2 {[%clk 0:02:33]}  Bd7 {[%clk 0:02:52]} 9. a3 {[%clk 0:02:28]}  Rc8 {[%clk 0:02:52]} 10. O-O {[%clk 0:02:26]}  Na5 {[%clk 0:02:50]} 11. Qg3 {[%clk 0:02:25]}  Re8 {[%clk 0:02:42]} 12. Qxd6 {[%clk 0:02:24]}  Rc6 {[%clk 0:02:34]} 13. Qf4 {[%clk 0:02:17]}  Rb6 {[%clk 0:02:31]} 14. b4 {[%clk 0:02:13]}  Nc6 {[%clk 0:02:27]} 15. Na4 {[%clk 0:02:12]}  Nxd4 {[%clk 0:02:16]} 16. Nxb6 {[%clk 0:02:08]}  Nxe2+ {[%clk 0:02:15]} 17. Bxe2 {[%clk 0:02:09]}  Qxb6 {[%clk 0:02:16]} 18. c4 {[%clk 0:02:08]}  e5 {[%clk 0:02:11]} 19. Qh4 {[%clk 0:02:07]}  d4 {[%clk 0:02:00]} 20. exd4 {[%clk 0:02:05]}  exd4 {[%clk 0:02:00]} 21. c5 {[%clk 0:02:04]}  Qc7 {[%clk 0:01:56]} 22. Bc4 {[%clk 0:02:00]}  Re4 {[%clk 0:01:52]} 23. Qg3 {[%clk 0:01:59]}  Qxg3 {[%clk 0:01:41]} 24. hxg3 {[%clk 0:02:00]}  Rg4 {[%clk 0:01:15]} 25. Rad1 {[%clk 0:01:57]}  h5 {[%clk 0:01:06]} 26. Be2 {[%clk 0:01:52]}  Re4 {[%clk 0:00:50]} 27. Bf3 {[%clk 0:01:52]}  Re7 {[%clk 0:00:44]} 28. Rxd4 {[%clk 0:01:37]}  Bb5 {[%clk 0:00:41]} 29. Rfd1 {[%clk 0:01:36]}  g5 {[%clk 0:00:39]} 30. Rd8+ {[%clk 0:01:29]}  Kg7 {[%clk 0:00:39]} 31. Rb8 {[%clk 0:01:29]}  Ba4 {[%clk 0:00:23]} 32. Rc1 {[%clk 0:01:24]}  b5 {[%clk 0:00:19]} 33. c6 {[%clk 0:01:21]}  g4 {[%clk 0:00:12]} 34. c7 {[%clk 0:01:03]}  Rxc7 {[%clk 0:00:10]} 35. Rxc7 {[%clk 0:01:03]}  gxf3 {[%clk 0:00:10]} 36. gxf3 {[%clk 0:01:04]}  Bd1 {[%clk 0:00:09]} 37. Rxb5 {[%clk 0:01:02]}  Bxf3 {[%clk 0:00:08]} 38. Rxa7 {[%clk 0:01:02]} 1-0


[Site "https://www.chess.com"]